bitfinex-derivatives/quotes_BTCF0:USTF0_20251225
["timestamp","ask_amount","ask_price","bid_price","bid_amount"]
[1766682968189,0.0113563,88119.0,88106.0,0.05692]
[1766682969577,0.02458093,88118.0,88106.0,0.05692]
[1766682969777,0.02458093,88117.0,88106.0,0.05692]
[1766682969979,0.02458093,88116.0,88106.0,0.05692]
[1766682970179,0.02458093,88115.0,88093.0,0.0404]
[1766682970481,0.0113581,88105.0,88092.0,0.00017021]
[1766682970676,0.02458093,88104.0,88092.0,0.00017021]
[1766682970873,0.02458093,88103.0,88092.0,0.00017021]
[1766682971071,0.02458093,88102.0,88092.0,0.00017021]
[1766682971374,0.02458093,88101.0,88092.0,0.00017021]
[1766682971571,0.02458093,88100.0,88092.0,0.00017021]
[1766682971770,0.02458093,88099.0,88092.0,0.00017021]
[1766682971973,0.02458093,88098.0,88092.0,0.00017021]
[1766682972176,0.02458093,88097.0,88092.0,0.00017021]
[1766682972378,0.02458093,88096.0,88092.0,0.00017021]
[1766682972691,0.02458093,88095.0,88092.0,0.00017021]
[1766682972889,0.02458093,88094.0,88084.0,0.05688]
[1766682973074,0.0113584,88102.0,88084.0,0.08688]
[1766682973282,0.02457762,88101.0,88084.0,0.08688]
[1766682973580,0.0113584,88102.0,88084.0,0.08688]
[1766682973779,0.02457685,88101.0,88084.0,0.08688]
[1766682973979,0.00017021,88101.0,88084.0,0.08705021]
[1766682974385,0.00017021,88101.0,88085.0,0.0113605]
[1766682974581,0.00017021,88101.0,88085.0,0.0413605]
[1766682975692,0.02457514,88100.0,88085.0,0.0413605]
[1766682975890,0.00017021,88101.0,88085.0,0.0413605]
[1766682976190,0.02457513,88100.0,88085.0,0.0413605]
[1766682976391,0.00017021,88101.0,88085.0,0.0413605]
[1766682979189,0.00017021,88101.0,88087.0,0.0113602]
[1766682981491,0.00017021,88101.0,88084.0,0.06841081]
[1766682981685,0.00017021,88101.0,88084.0,0.09841081]
[1766682982296,0.10256624,88147.0,88084.0,0.08705021]
[1766682982297,0.0608698,88117.0,88084.0,0.08705021]
[1766682982590,0.09882931,88133.0,88107.0,0.0113577]
[1766682982791,0.0113549,88129.0,88111.0,0.0113571]
[1766682982989,0.0113549,88129.0,88106.0,0.0472371]
[1766682983383,0.0113552,88127.0,88111.0,0.0113571]
[1766682983578,0.05692,88126.0,88111.0,0.0113571]
[1766682983980,0.0113555,88125.0,88106.0,1e-08]
[1766682984186,0.0113575,88109.0,88103.0,0.09656]
[1766682984494,0.011358,88106.0,88096.0,0.05688]
[1766682984792,0.0113581,88104.0,88087.0,0.05688]
[1766682985096,0.00017021,88104.0,88088.0,0.0113601]
[1766682985796,0.01152841,88104.0,88088.0,0.0113601]
[1766682986589,0.05688,88111.0,88097.0,0.0113589]
[1766682986796,0.09656,88110.0,88097.0,0.0113589]
[1766682986994,0.011357,88113.0,88097.0,0.0113589]
[1766682987197,0.09656,88113.0,88099.0,0.0113587]
[1766682987598,0.09656,88113.0,88096.0,0.0113591]
[1766682989001,0.0113571,88112.0,88096.0,0.0113591]
[1766682989201,0.0113571,88112.0,88096.0,0.0682391]
[1766682990503,0.09656,88113.0,88096.0,0.05688]
[1766682990699,0.0113575,88109.0,88096.0,0.05688]
[1766682991004,0.0113571,88112.0,88096.0,0.05688]
[1766682991304,0.0113574,88110.0,88096.0,0.05688]
[1766682994503,0.02457421,88109.0,88096.0,0.05688]
[1766682994705,0.02457421,88108.0,88096.0,0.05688]
[1766682994899,0.02457421,88107.0,88096.0,0.05688]
[1766682995100,0.02457421,88106.0,88096.0,0.05688]
[1766682995393,0.02457421,88105.0,88096.0,0.05688]
[1766682995597,0.02457421,88104.0,88096.0,0.05688]
[1766682995810,0.02457421,88103.0,88096.0,0.05688]
[1766682996003,0.0113574,88110.0,88096.0,0.05688]
[1766682996204,0.02457574,88109.0,88096.0,0.05688]
[1766682996411,0.02457574,88108.0,88096.0,0.05688]
[1766682996610,0.02457574,88107.0,88096.0,0.05688]
[1766682996908,0.02457574,88106.0,88096.0,0.05688]
[1766682997213,0.02457574,88105.0,88096.0,0.05688]
[1766682997412,0.02457574,88104.0,88096.0,0.05688]
[1766682997709,0.02457574,88103.0,88096.0,0.05688]
[1766682997904,0.02457574,88102.0,88096.0,0.05688]
[1766682998113,0.0113574,88110.0,88096.0,0.05688]
[1766682998310,0.02458108,88109.0,88096.0,0.05688]
[1766682998610,0.02458108,88108.0,88096.0,0.05688]
[1766682998811,0.02458108,88107.0,88096.0,0.05688]
[1766683001013,0.02458108,88106.0,88096.0,0.05688]
[1766683001215,0.02458108,88105.0,88096.0,0.05688]
[1766683001408,0.02458108,88104.0,88096.0,0.05688]
[1766683001608,0.02458108,88103.0,88096.0,0.05688]
[1766683001905,0.02458108,88102.0,88096.0,0.05688]
[1766683002113,0.0113573,88111.0,88096.0,0.05688]
[1766683002308,0.02459059,88110.0,88096.0,0.05688]
[1766683002509,0.02459059,88109.0,88097.0,0.011359]
[1766683002714,0.02459059,88108.0,88097.0,0.011359]
[1766683002918,0.02459082,88107.0,88097.0,0.011359]
[1766683003108,0.02459082,88106.0,88097.0,0.011359]
[1766683003308,0.02459082,88105.0,88097.0,0.011359]
[1766683003510,0.02459082,88104.0,88097.0,0.011359]
[1766683003705,0.02459082,88103.0,88097.0,0.011359]
[1766683003904,0.0113573,88111.0,88097.0,0.011359]
[1766683004107,0.02459111,88110.0,88097.0,0.011359]
[1766683004307,0.02459111,88109.0,88097.0,0.011359]
[1766683004507,0.02459111,88108.0,88097.0,0.011359]
[1766683004800,0.02459111,88107.0,88097.0,0.011359]
[1766683005009,0.02459111,88106.0,88097.0,0.011359]
[1766683005208,0.02459111,88105.0,88097.0,0.011359]
[1766683005509,0.02459111,88104.0,88097.0,0.011359]
[1766683005706,0.02459111,88103.0,88097.0,0.011359]
[1766683006004,0.0113573,88111.0,88097.0,0.011359]
[1766683006204,0.02459181,88110.0,88097.0,0.011359]
[1766683006412,0.02459181,88109.0,88097.0,0.011359]
[1766683006615,0.02459181,88108.0,88097.0,0.011359]
[1766683006814,0.02459181,88107.0,88097.0,0.011359]
[1766683007017,0.02459181,88106.0,88097.0,0.011359]
[1766683007319,0.02459181,88105.0,88096.0,0.05688]
[1766683007518,0.02459181,88104.0,88096.0,0.05688]
[1766683007811,0.02459181,88103.0,88096.0,0.05688]
[1766683008010,0.0113575,88109.0,88096.0,0.05688]
[1766683008216,0.02459355,88108.0,88096.0,0.05688]
[1766683008416,0.02459355,88107.0,88096.0,0.05688]
[1766683008617,0.02459355,88106.0,88096.0,0.05688]
[1766683008821,0.02459355,88105.0,88096.0,0.05688]
[1766683009018,0.02459355,88104.0,88096.0,0.05688]
[1766683009220,0.02459355,88103.0,88096.0,0.05688]
[1766683009422,0.02459355,88102.0,88096.0,0.05688]
[1766683009615,0.0113575,88109.0,88096.0,0.05688]
[1766683009916,0.02460415,88108.0,88096.0,0.05688]
[1766683010216,0.02460415,88107.0,88096.0,0.05688]
[1766683010415,0.02460415,88106.0,88096.0,0.05688]
[1766683010617,0.02460415,88105.0,88096.0,0.05688]
[1766683010822,0.02460415,88104.0,88096.0,0.05688]
[1766683011020,0.02460415,88103.0,88096.0,0.05688]
[1766683011220,0.0113575,88109.0,88096.0,0.05688]
[1766683013325,0.0722273,88109.0,88096.0,0.05688]
[1766683014318,0.0608698,88108.0,88096.0,0.05688]
[1766683019517,0.0113584,88102.0,88096.0,0.05688]
[1766683020226,0.011358,88105.0,88096.0,0.04888]
[1766683020828,0.011358,88105.0,88095.0,0.09656]
[1766683021026,0.011358,88105.0,88094.0,0.05688]
[1766683023129,0.05688,88112.0,88094.0,0.05688]
[1766683023628,0.0113573,88111.0,88096.0,0.0113591]
[1766683024431,0.05688,88112.0,88098.0,0.0113588]
[1766683025328,0.0722263,88117.0,88100.0,0.0774148]
[1766683025630,0.0608698,88123.0,88102.0,0.0113583]
[1766683025929,0.15344,88122.0,88104.0,0.00017021]
[1766683026116,0.0608698,88124.0,88104.0,0.00017021]
[1766683026318,0.15344,88123.0,88104.0,0.00017021]
[1766683026519,0.05688,88122.0,88104.0,0.00017021]
[1766683027324,0.0113561,88120.0,88101.0,0.04640841]
[1766683028434,0.00017021,88119.0,88103.0,0.0113582]
[1766683029137,0.00017021,88119.0,88105.0,0.0113579]
[1766683030641,0.01152641,88119.0,88102.0,0.01152851]
[1766683032441,0.00017021,88119.0,88102.0,0.00017021]
[1766683032739,0.0682363,88118.0,88102.0,0.00017021]
[1766683032937,0.0682363,88118.0,88103.0,0.00739]
[1766683034440,0.0682363,88118.0,88101.0,0.03896862]
[1766683034939,0.0113575,88109.0,88090.0,0.0774148]
[1766683035135,0.0113575,88109.0,88090.0,0.1074148]
[1766683035442,0.0113578,88107.0,88091.0,0.01153001]
[1766683035640,0.0113578,88107.0,88091.0,0.03017021]
[1766683036041,0.0113578,88107.0,88091.0,0.04152991]
[1766683037643,0.0113582,88104.0,88091.0,0.00017021]
[1766683037839,0.0113587,88100.0,88091.0,0.00017021]
[1766683038147,0.09656,88109.0,88082.0,0.05688]
[1766683038348,0.09656,88109.0,88082.0,0.08688]
[1766683039049,0.00017021,88104.0,88087.0,0.00017021]
[1766683039248,0.0113588,88099.0,88087.0,0.00017021]
[1766683039454,0.0113591,88097.0,88087.0,0.00017021]
[1766683040758,0.0113597,88092.0,88074.0,0.05688]
[1766683040937,0.0113597,88092.0,88074.0,0.08688]
[1766683041137,0.0113597,88092.0,88075.0,0.0113618]
[1766683041448,0.0113593,88096.0,88077.0,0.0113615]
[1766683041650,0.0113593,88096.0,88078.0,0.00017021]
[1766683041952,0.0113595,88094.0,88078.0,0.00017021]
[1766683042543,0.0113595,88094.0,88078.0,0.03017021]
[1766683043246,0.15344,88099.0,88078.0,0.03017021]
[1766683043452,0.0113602,88088.0,88078.0,0.00017021]
[1766683044958,0.0113598,88091.0,88078.0,0.00017021]
[1766683046747,0.0113601,88089.0,88078.0,0.00017021]
[1766683047263,0.0113597,88092.0,88078.0,0.00017021]
[1766683049160,0.0113593,88095.0,88079.0,0.0113613]
[1766683049351,0.0113596,88093.0,88078.0,0.00017021]
[1766683050653,0.0682396,88093.0,88078.0,0.00017021]
[1766683051060,0.0682396,88093.0,88073.0,0.00227086]
[1766683051061,0.05688,88093.0,88073.0,0.00227086]
[1766683051357,0.011361,88082.0,88073.0,0.00227086]
[1766683051561,0.0113606,88086.0,88073.0,0.00227086]
[1766683051945,0.0113601,88089.0,88073.0,0.00227086]
[1766683053052,0.0113604,88087.0,88073.0,0.00227086]
[1766683053954,0.0113589,88099.0,88081.0,0.011361]
[1766683054151,0.0113586,88101.0,88081.0,0.011361]
[1766683054351,0.15348,88100.0,88081.0,0.011361]
[1766683054554,0.15348,88099.0,88081.0,0.011361]
[1766683055064,0.1650091,88099.0,88081.0,0.011361]
[1766683056462,0.0001703,88099.0,88084.0,0.0113606]
[1766683056759,0.0001703,88099.0,88089.0,0.0774148]
[1766683057764,0.0001703,88099.0,88086.0,0.0113603]
[1766683060267,0.0001703,88099.0,88089.0,0.0774148]
[1766683060969,0.0001703,88099.0,88086.0,0.0113603]
[1766683061163,0.0001703,88099.0,88089.0,0.0774148]
[1766683061566,0.0001703,88099.0,88086.0,0.0113603]
[1766683062658,0.0001703,88099.0,88083.0,0.0113608]
[1766683062867,0.0113592,88096.0,88080.0,0.0774148]
[1766683063165,0.0113592,88096.0,88080.0,0.1074148]
[1766683063771,0.0115291,88099.0,88081.0,0.011361]
[1766683063961,0.0115291,88099.0,88081.0,0.031361]
[1766683064568,0.0001703,88099.0,88081.0,0.02]
[1766683066175,0.0113593,88095.0,88081.0,0.02]
[1766683068676,0.011359,88098.0,88081.0,0.02]
[1766683068975,0.011359,88098.0,88082.0,0.0113609]
[1766683070477,0.0113592,88096.0,88082.0,0.0113609]
[1766683070673,0.0001703,88099.0,88080.0,0.2309348]
[1766683070879,0.0001703,88099.0,88080.0,0.2509348]
[1766683071975,0.0113603,88087.0,88073.0,0.00227086]
[1766683072177,0.0113603,88087.0,88073.0,0.03227086]
[1766683073180,0.0113597,88092.0,88076.0,0.0113616]
[1766683073382,0.01136,88090.0,88076.0,0.03]
[1766683076074,0.15352,88092.0,88076.0,0.03]
[1766683076383,0.0113596,88093.0,88076.0,0.03]
[1766683076685,0.15352,88092.0,88076.0,0.03]
[1766683076888,0.0113598,88091.0,88076.0,0.03]
[1766683078985,0.0682798,88091.0,88076.0,0.03]
[1766683079387,0.0682798,88091.0,88075.0,0.0113617]
[1766683079684,0.0113601,88089.0,88075.0,0.02]
[1766683081373,0.0001703,88099.0,88075.0,0.02]
[1766683081374,0.0001703,88099.0,88080.0,0.0113612]
[1766683081574,0.0113592,88096.0,88080.0,0.0113612]
[1766683081775,0.0113594,88094.0,88080.0,0.0113612]
[1766683082186,0.0113594,88094.0,88077.0,0.0113615]
[1766683083480,0.0113597,88092.0,88077.0,0.0113615]
[1766683083687,0.0113593,88095.0,88073.0,0.00227086]
[1766683083877,0.0113591,88097.0,88082.0,0.0113609]
[1766683087387,0.0001703,88099.0,88073.0,0.00227086]
[1766683087602,0.05692,88103.0,88087.0,0.0113602]
[1766683087890,0.0113581,88105.0,88087.0,0.0113602]
[1766683087891,0.0682781,88105.0,88087.0,0.0113602]
[1766683088587,0.0684484,88105.0,88087.0,0.0115305]
[1766683088784,0.0966,88113.0,88098.0,0.0113588]
[1766683089190,0.0113569,88114.0,88098.0,0.0113588]
[1766683090491,0.0113572,88112.0,88095.0,0.0113592]
[1766683090893,0.0113572,88112.0,88092.0,0.0966]
[1766683091192,0.068447,88115.0,88092.0,0.0966]
[1766683092388,0.068447,88115.0,88092.0,0.1266]
[1766683092587,0.0001703,88115.0,88101.0,0.0113584]
[1766683093488,0.0001703,88115.0,88104.0,0.0113581]
[1766683094796,0.0608698,88125.0,88104.0,0.0113581]
[1766683094797,0.06080371,88144.0,88105.0,0.1548901]
[1766683094988,0.0113506,88163.0,88105.0,0.1548901]
[1766683094989,0.01294096,88162.0,88130.0,0.0113547]
[1766683095179,0.05688,88163.0,88131.0,0.15352]
[1766683095391,0.06980812,88163.0,88132.0,0.0113545]
[1766683095585,0.06980812,88163.0,88131.0,0.15352]
[1766683095586,0.0113523,88150.0,88131.0,0.15352]
[1766683095788,0.0113525,88148.0,88132.0,0.00017021]
[1766683097889,0.00016985,88149.0,88132.0,0.00017021]
[1766683098093,0.00016985,88149.0,88133.0,0.0113543]
[1766683099296,0.00016985,88149.0,88135.0,0.011354]
[1766683099689,0.00016985,88149.0,88137.0,0.0113537]
[1766683102000,0.00016985,88149.0,88134.0,0.0113542]
[1766683104591,0.0113525,88148.0,88132.0,0.00017021]
[1766683104796,0.0113534,88141.0,88132.0,0.00017021]
[1766683105006,0.09656,88141.0,88117.0,0.15348]
[1766683105204,0.09656,88141.0,88117.0,0.12656]
[1766683105406,0.09656,88141.0,88117.0,0.09656]
[1766683105594,0.0113541,88136.0,88118.0,0.0113563]
[1766683105901,0.0113541,88136.0,88120.0,0.0113559]
[1766683108000,0.00017021,88137.0,88122.0,0.0113557]
[1766683108601,0.00017021,88137.0,88117.0,0.09656]
[1766683108801,0.00017021,88137.0,88117.0,0.09308591]
[1766683109208,0.00017021,88137.0,88123.0,0.0113556]
[1766683113615,0.0113526,88147.0,88121.0,0.00017021]
[1766683113907,0.0113532,88143.0,88126.0,0.0113552]
[1766683114616,0.01152341,88143.0,88126.0,0.0113552]
[1766683115115,0.0113534,88141.0,88126.0,0.0113552]
[1766683117117,0.00017021,88143.0,88130.0,0.0113547]
[1766683118111,0.06059769,88159.0,88134.0,0.0113542]
[1766683118112,0.0113523,88150.0,88134.0,0.0113542]
[1766683118317,0.15344,88152.0,88127.0,0.09652]
[1766683118922,0.0113513,88157.0,88127.0,0.09652]
[1766683119120,0.0113516,88155.0,88140.0,0.0113535]
[1766683119420,0.00016985,88151.0,88140.0,0.0113535]
[1766683120113,0.00016985,88151.0,88139.0,0.00017021]
[1766683120818,0.00016985,88151.0,88127.0,0.09652]
[1766683121013,0.00016985,88151.0,88127.0,0.12652]
[1766683121415,0.00016985,88151.0,88139.0,0.0113535]
[1766683121816,0.00016985,88151.0,88141.0,0.0113533]
[1766683123323,0.1647909,88160.0,88137.0,0.09652]
[1766683124023,0.1647909,88160.0,88144.0,0.0113529]
[1766683125617,0.15344,88160.0,88144.0,0.0113529]
[1766683126416,0.15344,88160.0,88146.0,0.0113526]
[1766683127016,0.15344,88160.0,88148.0,0.0113524]
[1766683127727,0.00017021,88161.0,88148.0,0.0113524]
[1766683130813,0.00017021,88161.0,88150.0,0.0113521]
[1766683133230,0.00017021,88161.0,88147.0,0.0113525]
[1766683135729,0.06059769,88174.0,88159.0,0.011351]
[1766683135934,0.05692,88174.0,88159.0,0.011351]
[1766683136232,0.01135,88168.0,88151.0,0.011352]
[1766683136432,0.01135,88168.0,88153.0,0.0113517]
[1766683136632,0.06878474,88174.0,88152.0,0.00017021]
[1766683136836,0.011351,88160.0,88127.0,0.04081248]
[1766683137027,0.011351,88160.0,88143.0,0.011353]
[1766683137229,0.011351,88160.0,88143.0,0.107873]
[1766683137930,0.01152121,88160.0,88143.0,0.10804321]
[1766683138133,0.00017021,88160.0,88143.0,0.09669021]
[1766683138330,0.0113515,88156.0,88143.0,0.09669021]
[1766683138725,0.0113518,88154.0,88143.0,0.09669021]
[1766683138927,0.0113522,88150.0,88135.0,0.0113541]
[1766683139132,0.0113519,88153.0,88135.0,0.0113541]
[1766683139929,0.0113519,88153.0,88135.0,0.01152431]
[1766683140639,0.0113519,88153.0,88137.0,0.0113538]
[1766683142334,0.0113516,88155.0,88139.0,0.0113535]
[1766683142640,0.09652,88157.0,88140.0,0.07732453]
[1766683143342,0.0113514,88156.0,88140.0,0.08867803]
[1766683144134,0.09652,88157.0,88142.0,0.0113532]
[1766683144534,0.09652,88157.0,88144.0,0.0113529]
[1766683144736,0.00017021,88160.0,88147.0,0.07732453]
[1766683145837,0.00017021,88160.0,88142.0,0.05692]
[1766683146042,0.00017021,88160.0,88148.0,0.0113523]
[1766683149238,0.00017021,88160.0,88142.0,0.05692]
[1766683149239,0.00017021,88160.0,88145.0,0.0113527]
[1766683151145,0.00017021,88160.0,88142.0,0.05692]
[1766683151368,0.07749474,88160.0,88142.0,0.05692]
[1766683151556,0.0113519,88153.0,88142.0,0.05692]
[1766683152145,0.0113515,88156.0,88142.0,0.05692]
[1766683152454,0.0113517,88154.0,88142.0,0.05692]
[1766683153051,0.0113514,88157.0,88142.0,0.05692]
[1766683153252,0.0113516,88155.0,88142.0,0.05692]
[1766683156253,0.07194889,88158.0,88142.0,0.0682731]
[1766683156652,0.0113514,88156.0,88142.0,0.0682731]
[1766683157757,0.0113517,88154.0,88142.0,0.05692]
[1766683162762,0.06059769,88158.0,88142.0,0.05692]
[1766683162955,0.0113515,88156.0,88142.0,0.05692]
[1766683163362,0.0113516,88155.0,88142.0,0.05692]
[1766683165262,0.0113512,88158.0,88142.0,0.05692]
[1766683165457,0.00017021,88160.0,88142.0,0.05692]
[1766683166167,0.0113514,88157.0,88142.0,0.05692]
[1766683166373,0.0113516,88155.0,88142.0,0.05692]
[1766683173774,0.00017021,88160.0,88142.0,0.05692]
[1766683174765,0.01152121,88160.0,88143.0,0.011353]
[1766683177373,0.0113513,88157.0,88143.0,0.011353]
[1766683177574,0.0113516,88155.0,88142.0,0.05692]
[1766683180076,0.0113519,88153.0,88142.0,0.05692]
[1766683188890,0.0113515,88156.0,88142.0,0.05692]
[1766683190693,0.0113517,88154.0,88142.0,0.05692]
[1766683204504,0.0113514,88157.0,88142.0,0.0682732]
[1766683209603,0.081092,88175.0,88142.0,0.08692]
[1766683209903,0.17121554,88190.0,88142.0,0.08692]
[1766683209904,0.0113493,88173.0,88158.0,0.0113511]
[1766683210106,0.0113491,88174.0,88160.0,0.0113509]
[1766683210595,0.0113491,88174.0,88158.0,0.00017021]
[1766683210796,0.0113494,88172.0,88158.0,0.00017021]
[1766683211204,0.011349,88175.0,88159.0,0.011351]
[1766683211496,0.00017021,88176.0,88158.0,0.00017021]
[1766683211894,0.00017021,88176.0,88165.0,0.0113502]
[1766683212403,0.01055535,88184.0,88158.0,0.00017021]
[1766683212404,0.1534,88183.0,88167.0,0.0113499]
[1766683212610,0.0113475,88187.0,88164.0,0.05688]
[1766683212805,0.05688,88186.0,88164.0,0.05688]
[1766683213106,0.05688,88186.0,88172.0,0.0113493]
[1766683213406,0.068227,88191.0,88164.0,0.05688]
[1766683213600,0.0682269,88191.0,88174.0,0.011349]
[1766683213797,0.0682269,88191.0,88171.0,0.0113494]
[1766683214310,0.0113473,88189.0,88171.0,0.0113494]
[1766683216407,0.05688,88191.0,88173.0,0.0113491]
[1766683217112,0.05688,88191.0,88176.0,0.0113488]
[1766683218207,0.00226777,88193.0,88178.0,0.0113485]
[1766683218408,0.00226777,88193.0,88177.0,0.00017011]
[1766683218409,0.011347,88191.0,88177.0,0.00017011]
[1766683218604,0.00226777,88193.0,88154.0,0.03066595]
[1766683218605,0.0113479,88184.0,88170.0,0.05688]
[1766683218799,0.00226777,88193.0,88170.0,0.05688]
[1766683218800,0.0113481,88182.0,88171.0,0.09652]
[1766683219612,0.01151749,88185.0,88171.0,0.09652]
[1766683220907,0.00016979,88185.0,88171.0,0.09652]
[1766683221108,0.0113473,88188.0,88172.0,0.0113493]
[1766683222818,0.0113473,88188.0,88171.0,0.0908693]
[1766683223206,0.0113469,88191.0,88172.0,0.0113493]
[1766683224309,0.00226777,88193.0,88171.0,0.0908693]
[1766683224509,0.00226777,88193.0,88178.0,0.0113485]
[1766683225411,0.00226777,88193.0,88171.0,0.0908693]
[1766683225412,0.00226777,88193.0,88180.0,0.0113483]
[1766683228710,0.00226777,88193.0,88172.0,0.0113493]
[1766683228913,0.00226777,88193.0,88172.0,0.0413493]
[1766683229308,0.00226777,88193.0,88181.0,0.0113481]
[1766683229917,0.00226777,88193.0,88171.0,0.0908693]
[1766683230113,0.00226777,88193.0,88171.0,0.1208693]
[1766683230320,0.00226777,88193.0,88181.0,0.0113481]
[1766683230911,0.00226777,88193.0,88171.0,0.1022187]
[1766683231108,0.00226777,88193.0,88171.0,0.1322187]
[1766683232318,0.00226777,88193.0,88182.0,0.0113479]
[1766683232509,0.00226777,88193.0,88184.0,0.0113477]
[1766683233717,0.00226777,88193.0,88181.0,0.0113482]
[1766683234106,0.00226777,88193.0,88178.0,0.05684]
[1766683234107,0.00226777,88193.0,88183.0,0.0113478]
[1766683234512,0.00226777,88193.0,88178.0,0.05684]
[1766683235023,0.01361447,88193.0,88178.0,0.05684]
[1766683235816,0.01361447,88193.0,88179.0,0.0113484]
[1766683239027,0.00226777,88193.0,88179.0,0.0113484]
[1766683239227,0.06304334,88193.0,88179.0,0.0113484]
[1766683239818,0.06304334,88193.0,88178.0,0.05684]
[1766683240220,0.06077557,88192.0,88179.0,0.0113484]
[1766683242221,0.06077557,88190.0,88179.0,0.0113484]
[1766683243629,0.00226777,88193.0,88179.0,0.0113484]
[1766683244732,0.0113468,88192.0,88178.0,0.05684]
[1766683245032,0.0113468,88192.0,88178.0,0.0681885]
[1766683246430,0.00226777,88193.0,88178.0,0.0681885]
[1766683248334,0.01361447,88193.0,88178.0,0.0681885]
[1766683249036,0.011347,88191.0,88178.0,0.0681885]
[1766683249639,0.00226777,88193.0,88178.0,0.0681885]
[1766683251041,0.00226777,88193.0,88180.0,0.0113482]
[1766683251642,0.0113468,88192.0,88178.0,0.05684]
[1766683251835,0.00226777,88193.0,88179.0,0.0113484]
[1766683253429,0.01361447,88193.0,88179.0,0.0113484]
[1766683257937,0.00226777,88193.0,88178.0,0.05684]
[1766683258137,0.0113475,88187.0,88178.0,0.05684]
[1766683258645,0.0113471,88190.0,88178.0,0.05684]
[1766683262549,0.00226777,88193.0,88178.0,0.0681886]
[1766683262842,0.00186777,88193.0,88183.0,0.0113479]
[1766683265344,0.00186777,88193.0,88180.0,0.07726575]
[1766683265549,0.00022677,88194.0,88183.0,0.0113478]
[1766683265849,0.00022677,88194.0,88182.0,0.011348]
[1766683266347,0.00022677,88194.0,88178.0,0.05684]
[1766683266348,0.01157337,88194.0,88178.0,0.05684]
[1766683266546,0.00022677,88194.0,88178.0,0.05684]
[1766683266849,0.0113471,88190.0,88178.0,0.05684]
[1766683267050,0.0113467,88193.0,88178.0,0.05684]
[1766683267452,0.0113467,88193.0,88178.0,0.0681885]
[1766683269748,0.00022677,88194.0,88178.0,0.05684]
[1766683269954,0.00018677,88194.0,88178.0,0.05684]
[1766683270252,0.01153337,88194.0,88178.0,0.0681885]
[1766683271654,0.00018677,88194.0,88180.0,0.0113482]
[1766683272050,0.00018677,88194.0,88180.0,0.07726575]
[1766683272754,0.00018677,88194.0,88184.0,0.0113478]
[1766683274248,0.00018677,88194.0,88180.0,0.07726575]
[1766683274848,0.00018677,88194.0,88184.0,0.0113477]
[1766683276359,0.00018677,88194.0,88186.0,0.0113475]
[1766683277544,0.00018677,88194.0,88180.0,0.07726575]
[1766683277545,0.05098366,88198.0,88180.0,0.07726575]
[1766683278146,0.05098366,88198.0,88186.0,0.0113475]
[1766683283660,0.0113456,88201.0,88186.0,0.0113475]
[1766683285561,0.0113456,88201.0,88188.0,0.0113472]
[1766683286260,0.0113456,88201.0,88186.0,0.00017011]
[1766683286261,0.0113462,88197.0,88186.0,0.00017011]
[1766683287363,0.0113459,88200.0,88186.0,0.00017011]
[1766683289360,0.011346,88198.0,88186.0,0.00017011]
[1766683292769,0.011346,88198.0,88184.0,0.0113477]
[1766683296673,0.07743586,88200.0,88182.0,0.00017011]
[1766683297263,0.0113465,88195.0,88182.0,0.00017011]
[1766683297770,0.0113467,88193.0,88182.0,0.00017011]
[1766683306183,0.01110161,88193.0,88182.0,0.00017011]
[1766683306486,0.0113465,88194.0,88182.0,0.00017011]
[1766683309786,0.0113465,88194.0,88182.0,9.011e-05]
[1766683310386,0.0113462,88197.0,88182.0,0.01143821]
[1766683310580,0.0113465,88195.0,88182.0,0.01143821]
[1766683310785,0.0113465,88195.0,88182.0,9.011e-05]
[1766683311884,0.0113467,88193.0,88182.0,9.011e-05]
[1766683313488,0.0113467,88193.0,88178.0,0.05684]
[1766683313690,0.0113467,88193.0,88178.0,0.08684]
[1766683314189,0.0113467,88193.0,88180.0,0.0113483]
[1766683314988,0.0113467,88193.0,88178.0,0.05701011]
[1766683315190,0.0113467,88193.0,88179.0,0.0113484]
[1766683315486,0.09648,88198.0,88179.0,0.0113484]
[1766683317290,0.0113467,88193.0,88179.0,0.0113484]
[1766683318093,0.0113467,88193.0,88178.0,0.05701011]
[1766683318283,0.0113467,88193.0,88178.0,0.07835871]
[1766683318684,0.0113467,88193.0,88178.0,0.06835871]
[1766683319390,0.0113467,88193.0,88180.0,0.0113483]
[1766683320287,0.0113467,88193.0,88178.0,0.05701011]
[1766683320492,0.0113467,88193.0,88179.0,0.0113484]
[1766683321094,0.0113463,88196.0,88179.0,0.0113484]
[1766683321492,0.0113465,88194.0,88179.0,0.0113484]
[1766683321695,0.0113478,88184.0,88169.0,0.12710355]
[1766683321896,0.011348,88183.0,88169.0,0.12648]
[1766683322278,0.011348,88183.0,88168.0,0.0681898]
[1766683322279,0.0113485,88179.0,88168.0,0.05684]
[1766683322486,0.0113481,88182.0,88166.0,0.0113501]
[1766683322790,0.00017011,88183.0,88168.0,0.0113498]
[1766683322988,0.00017011,88183.0,88170.0,0.0113496]
[1766683323490,0.00017011,88183.0,88172.0,0.0113493]
[1766683324083,0.00017011,88183.0,88174.0,0.011349]
[1766683324679,0.00017011,88183.0,88171.0,0.0113494]
[1766683324895,0.00017011,88183.0,88173.0,0.0113492]
[1766683325588,0.00017011,88183.0,88165.0,0.00017011]
[1766683325796,0.00017011,88183.0,88165.0,0.03017011]
[1766683326094,0.00017011,88183.0,88174.0,0.011349]
[1766683327290,0.00017011,88183.0,88165.0,0.00017011]
[1766683327291,1e-08,88183.0,88179.0,0.0113484]
[1766683327497,1e-08,88183.0,88181.0,0.0113482]
[1766683327704,1e-08,88183.0,88166.0,0.01135]
[1766683327889,1e-08,88183.0,88166.0,0.04135]
[1766683329282,1e-08,88183.0,88166.0,0.03]
[1766683329483,1e-08,88183.0,88173.0,0.0113492]
[1766683332500,1e-08,88183.0,88175.0,0.0113489]
[1766683333686,1e-08,88183.0,88177.0,0.0113487]
[1766683336398,1e-08,88183.0,88174.0,0.0113491]
[1766683339402,1e-08,88183.0,88176.0,0.0113488]
[1766683340096,1e-08,88183.0,88173.0,0.0113491]
[1766683340499,1e-08,88183.0,88165.0,0.00017011]
[1766683340705,1e-08,88183.0,88165.0,0.03017011]
[1766683341094,1e-08,88183.0,88175.0,0.0113489]
[1766683342505,1e-08,88183.0,88177.0,0.0113487]
[1766683343805,1e-08,88183.0,88179.0,0.0113483]
[1766683349011,1e-08,88183.0,88165.0,0.00017011]
[1766683349195,1e-08,88183.0,88173.0,0.0113492]
[1766683349600,1e-08,88183.0,88175.0,0.0113489]
[1766683353513,1e-08,88183.0,88165.0,0.00017011]
[1766683353514,1e-08,88183.0,88167.0,0.09648]
[1766683353706,1e-08,88183.0,88167.0,0.12648]
[1766683355314,1e-08,88183.0,88175.0,0.0113489]
[1766683362220,1e-08,88183.0,88172.0,0.0113493]